bitfinex/quotes_SOLUSD_20220208
["timestamp","ask_amount","ask_price","bid_price","bid_amount"]
[1644307180097,12.9728,117.94,117.85,37.768226]
[1644307180299,18.9728,117.94,117.85,37.768226]
[1644307180500,12.9728,117.94,117.85,1.561426]
[1644307180702,24.1138,117.94,117.85,1.561426]
[1644307180901,30.1138,117.94,117.85,1.561426]
[1644307182300,54.9403,117.94,117.85,1.561426]
[1644307183700,57.04805549,117.94,117.85,1.561426]
[1644307183901,58.25584697,117.94,117.85,1.561426]
[1644307186402,57.04805549,117.94,117.85,1.561426]
[1644307187303,54.9403,117.94,117.85,1.561426]
[1644307191607,57.04805549,117.94,117.85,1.561426]
[1644307191808,1.6912959,117.93,117.85,1.561426]
[1644307192011,12.7272,117.91,117.85,1.561426]
[1644307192209,18.9772,117.91,117.85,1.561426]
[1644307192608,29.7882,117.91,117.85,1.561426]
[1644307193611,29.5382,117.91,117.85,1.561426]
[1644307193807,18.7272,117.91,117.85,1.561426]
[1644307195211,18.9772,117.91,117.85,1.561426]
[1644307198312,30.0172,117.91,117.85,1.561426]
[1644307200116,32.12495549,117.91,117.85,1.561426]
[1644307200618,23.4946,117.9,117.85,1.561426]
[1644307200818,12.7326,117.89,117.85,1.561426]
[1644307201218,18.9826,117.89,117.85,1.561426]
[1644307201424,18.7326,117.89,117.85,1.561426]
[1644307201818,1.6912959,117.87,117.85,1.561426]
[1644307202918,0.5,117.86,117.85,1.561426]
[1644307203119,13.2316,117.86,117.85,1.561426]
[1644307204720,13.4816,117.86,117.85,1.561426]
[1644307206244,19.4816,117.86,117.81,0.024]
[1644307206444,13.4816,117.86,117.8,24.7463]
[1644307206644,19.4816,117.86,117.8,24.7463]
[1644307207048,19.4816,117.86,117.79,0.024]
[1644307207246,19.4816,117.86,117.78,24.3039]
[1644307207446,21.58935549,117.86,117.79,0.024]
[1644307211358,1.6912959,117.81,117.79,0.024]
[1644307211551,1.6912959,117.81,117.78,24.2799]
[1644307212351,1.6912959,117.81,117.79,5.56439994]
[1644307212553,0.0012959,117.81,117.79,5.56439994]
[1644307212752,2.10775549,117.86,117.8,99.0]
[1644307212953,42.4377,117.89,117.8,99.0]
[1644307213152,48.4377,117.89,117.81,0.024]
[1644307213553,22.7564,117.88,117.8,0.024]
[1644307213755,22.7564,117.88,117.82,0.024]
[1644307213956,22.7564,117.88,117.78,24.2799]
[1644307213957,22.7564,117.88,117.79,0.024]
[1644307214255,23.0064,117.88,117.79,0.024]
[1644307214756,12.73,117.87,117.79,0.024]
[1644307215362,18.73,117.87,117.79,0.024]
[1644307215560,6.0,117.87,117.79,1.69181027]
[1644307215756,6.0,117.87,117.79,1.94181027]
[1644307215956,7.20101881,117.92,117.79,7.94181027]
[1644307216157,7.20101881,117.92,117.8,46.6305]
[1644307216357,12.7285,117.89,117.81,12.7524]
[1644307216566,49.62911881,117.92,117.82,0.024]
[1644307216857,7.20101881,117.92,117.82,22.7689]
[1644307217058,7.20101881,117.92,117.83,0.024]
[1644307217258,12.7266,117.91,117.83,0.024]
[1644307217662,18.9766,117.91,117.83,0.024]
[1644307222359,18.7266,117.91,117.83,0.024]
[1644307223860,18.9766,117.91,117.83,0.024]
[1644307225163,24.8608,117.9,117.83,0.024]
[1644307225362,12.7325,117.88,117.81,0.024]
[1644307225561,37.5933,117.88,117.81,0.024]
[1644307225766,12.7325,117.88,117.8,0.024]
[1644307225962,7.20101881,117.91,117.8,0.024]
[1644307226162,6.0,117.91,117.8,9.749]
[1644307226366,12.7264,117.9,117.81,35.3886]
[1644307226562,18.7264,117.9,117.81,41.3886]
[1644307226762,18.7264,117.9,117.82,0.024]
[1644307227765,18.7264,117.9,117.83,12.7266]
[1644307227964,18.7264,117.9,117.84,22.9396]
[1644307228364,18.7264,117.9,117.84,23.1896]
[1644307230274,18.7264,117.9,117.84,22.9396]
[1644307230470,18.9764,117.9,117.84,22.9396]
[1644307231871,18.7264,117.9,117.84,22.9396]
[1644307232071,18.9764,117.9,117.84,22.9396]
[1644307232871,18.7264,117.9,117.84,23.1896]
[1644307233572,18.9764,117.9,117.84,22.9396]
[1644307239595,18.7264,117.9,117.84,33.7036]
[1644307239798,12.7253,117.92,117.84,48.09751027]
[1644307239997,529.74358773,117.98,117.85,121.0]
[1644307240200,1.20449447,117.96,117.86,47.3154]
[1644307240396,1.20449447,117.96,117.86,48.98321027]
[1644307240600,1.20449447,117.96,117.87,1.66781027]
[1644307240803,1.20449447,117.96,117.87,12.89881027]
[1644307241000,1.20449447,117.96,117.87,18.89881027]
[1644307241202,1.20449447,117.97,117.87,18.89881027]
[1644307241400,528.53986444,117.98,117.88,25.70122145]
[1644307241605,527.33536997,117.98,117.88,31.70122145]
[1644307241800,1.20449447,117.99,117.88,31.70122145]
[1644307241801,12.7186,117.99,117.88,44.67162145]
[1644307242002,13.92309447,117.99,117.88,44.67162145]
[1644307242500,12.7186,117.99,117.88,44.67162145]
[1644307243103,1.20449447,118.0,117.88,44.67162145]
[1644307243902,18.92972814,118.01,117.88,44.67162145]
[1644307244106,25.17972814,118.01,117.88,44.67162145]
[1644307244804,12.7174,118.0,117.89,1.66781027]
[1644307245004,23.97523367,118.01,117.92,12.7163]
[1644307245207,23.97523367,118.01,117.93,24.098]
[1644307245708,30.69153367,118.01,117.93,24.348]
[1644307246205,36.69153367,118.01,117.93,24.348]
[1644307246405,36.69153367,118.01,117.93,30.348]
[1644307246804,36.69153367,118.01,117.93,24.348]
[1644307247210,36.69153367,118.01,117.93,30.348]
[1644307247609,36.69153367,118.01,117.93,24.348]
[1644307247810,30.69153367,118.01,117.93,24.348]
[1644307248010,36.69153367,118.01,117.93,24.348]
[1644307249410,36.44153367,118.01,117.93,24.348]
[1644307249610,36.44153367,118.01,117.93,43.0638]
[1644307249812,17.72523367,118.01,117.93,43.0638]
[1644307252015,30.44113367,118.01,117.93,24.098]
[1644307252215,36.69113367,118.01,117.93,24.098]
[1644307252415,2.10775549,118.0,117.93,24.098]
[1644307252615,8.10775549,118.0,117.93,24.098]
[1644307252814,6.25,118.0,117.93,24.098]
[1644307253217,12.7207,117.98,117.93,24.098]
[1644307254616,12.9707,117.98,117.93,24.098]
[1644307255019,12.9707,117.98,117.9,36.0729]
[1644307255218,12.7207,117.98,117.9,36.3229]
[1644307255621,15.07845549,117.98,117.86,1.66781027]
[1644307255818,21.07845549,117.98,117.85,46.3765]
[1644307256518,21.07845549,117.98,117.85,23.1611]
[1644307257322,22.28294996,117.98,117.85,23.4111]
[1644307257521,28.71345549,117.98,117.85,23.4111]
[1644307257721,29.91794996,117.98,117.85,23.4111]
[1644307258124,28.71345549,117.98,117.85,23.4111]
[1644307258522,29.91794996,117.98,117.85,23.4111]
[1644307258721,22.28294996,117.98,117.85,23.4111]
[1644307259323,22.28294996,117.98,117.85,23.1611]
[1644307259725,30.9501287,117.98,117.85,23.1611]
[1644307260326,30.9501287,117.98,117.83,0.024]
[1644307260526,12.73,117.93,117.83,0.024]
[1644307260729,25.242,117.93,117.83,0.024]
[1644307260928,33.34975549,117.93,117.83,0.024]
[1644307262327,21.08775549,117.93,117.83,0.024]
[1644307262528,44.03175549,117.93,117.83,0.024]
[1644307263028,45.23624996,117.93,117.78,0.024]
[1644307263231,8.66717874,117.92,117.78,0.024]
[1644307263431,12.734,117.88,117.78,0.024]
[1644307263629,18.734,117.88,117.78,0.024]
[1644307263829,21.09175549,117.88,117.78,0.024]
[1644307264228,18.984,117.88,117.78,0.024]
[1644307264431,18.734,117.88,117.78,0.024]
[1644307265233,35.63017874,117.88,117.76,0.024]
[1644307265552,83.80827874,117.88,117.74,0.024]
[1644307265733,84.05827874,117.88,117.77,0.024]
[1644307265930,84.05827874,117.88,117.74,0.024]
[1644307266134,1.20449447,117.87,117.74,0.024]
[1644307266331,1.45449447,117.87,117.74,0.024]
[1644307266532,12.7426,117.83,117.69,0.024]
[1644307266733,18.9926,117.83,117.7,0.024]
[1644307266932,27.65977874,117.83,117.69,0.024]
[1644307270335,27.40977874,117.83,117.69,0.024]
[1644307271236,17.74909298,117.82,117.69,0.024]
[1644307271438,12.7428,117.79,117.69,0.024]
[1644307271635,18.7428,117.79,117.69,0.024]
[1644307272037,17.74909298,117.82,117.69,0.024]
[1644307272437,12.7399,117.81,117.69,0.024]
[1644307272735,18.7399,117.81,117.69,12.7639]
[1644307272935,18.7399,117.81,117.7,0.024]
[1644307274536,18.9899,117.81,117.7,0.024]
[1644307275537,18.9899,117.81,117.7,24.4304]
[1644307275737,18.9899,117.81,117.71,0.024]
[1644307275738,18.7399,117.81,117.71,0.024]
[1644307276136,2.10775549,117.8,117.71,0.024]
[1644307276337,12.7414,117.8,117.71,0.024]
[1644307276537,18.7414,117.8,117.71,0.024]
[1644307276936,2.10775549,117.79,117.71,0.024]
[1644307277137,8.10775549,117.79,117.71,0.024]
[1644307277439,8.35775549,117.79,117.71,0.024]
[1644307277936,12.7436,117.77,117.71,0.024]
[1644307278138,18.7436,117.77,117.71,0.024]
[1644307278337,18.9936,117.77,117.71,0.024]
[1644307278638,18.7436,117.77,117.71,0.024]
[1644307280038,18.9936,117.77,117.71,0.024]
[1644307285444,2.10775549,117.76,117.71,0.024]
[1644307285644,2.10775549,117.76,117.69,0.024]
[1644307285645,12.7476,117.75,117.69,0.024]
[1644307285845,12.9976,117.75,117.69,0.024]
[1644307286045,2.10775549,117.74,117.69,0.024]
[1644307286248,2.35775549,117.74,117.68,24.8486]
[1644307286646,8.35775549,117.74,117.68,24.8486]
[1644307287047,8.10775549,117.74,117.68,24.8486]
[1644307287247,8.35775549,117.74,117.65,0.024]
[1644307287449,2.10775549,117.73,117.65,0.024]
[1644307287647,8.10775549,117.73,117.65,0.024]
[1644307287847,19.87275549,117.73,117.64,0.024]
[1644307288072,2.10775549,117.72,117.62,0.024]
[1644307288272,2.35775549,117.72,117.61,0.024]
[1644307288775,2.10775549,117.71,117.61,0.024]
[1644307288974,2.10775549,117.71,117.59,0.024]
[1644307288975,14.89923413,117.71,117.59,0.024]
[1644307289173,8.97051208,117.7,117.58,0.024]
[1644307289372,11.07826757,117.7,117.58,0.024]
[1644307289573,17.32826757,117.7,117.58,0.024]
[1644307289771,12.7598,117.68,117.58,0.024]
[1644307290174,11.07826757,117.67,117.58,0.024]
[1644307290572,2.10775549,117.66,117.58,0.024]
[1644307290772,2.35775549,117.66,117.58,0.024]
[1644307290974,12.7616,117.65,117.58,0.024]
[1644307291173,18.7616,117.65,117.58,0.024]
[1644307291375,19.0116,117.65,117.58,0.024]
[1644307291573,21.11935549,117.65,117.58,0.024]
[1644307291775,39.41086757,117.65,117.58,0.024]
[1644307294276,52.20234621,117.65,117.58,0.024]
[1644307295574,29.83986757,117.65,117.58,0.024]
[1644307296379,18.7616,117.65,117.58,0.024]
[1644307297982,2.10775549,117.64,117.58,0.024]
[1644307298183,20.86685549,117.64,117.56,10.274]
[1644307298382,18.7591,117.64,117.56,10.274]
[1644307298781,20.86685549,117.64,117.56,10.274]
[1644307299189,18.7591,117.64,117.56,10.274]
[1644307301485,12.7591,117.64,117.56,10.024]
[1644307301687,21.11685549,117.64,117.56,10.024]
[1644307301884,19.0091,117.64,117.56,10.024]
[1644307302086,18.7591,117.64,117.56,10.024]
[1644307302785,18.7591,117.64,117.56,10.274]
[1644307302985,0.0001,117.64,117.57,104.0]
[1644307303188,23.75230904,117.65,117.57,104.0]
[1644307303385,2.10775549,117.69,117.57,110.274]
[1644307303586,2.10775549,117.69,117.58,0.024]
[1644307303786,17.74530985,117.67,117.58,0.024]
[1644307304391,17.99530985,117.67,117.58,0.024]
[1644307304586,17.74530985,117.67,117.58,0.024]
[1644307304786,17.74530985,117.67,117.58,1.68874355]
[1644307304984,30.50090985,117.67,117.59,0.024]
[1644307305185,32.60866534,117.67,117.58,0.024]
[1644307305884,36.75090985,117.67,117.58,0.024]
[1644307306286,38.85866534,117.67,117.58,0.024]
[1644307306489,57.31047723,117.67,117.58,0.024]
[1644307307688,60.81295587,117.67,117.58,0.024]
[1644307307889,48.02147723,117.67,117.58,0.024]
[1644307308088,38.85866534,117.67,117.58,0.024]
[1644307308489,48.02147723,117.67,117.58,0.024]
[1644307312894,25.57808564,117.66,117.58,0.024]
[1644307313096,12.7664,117.64,117.58,0.024]
[1644307313393,12.7664,117.64,117.56,10.0]
[1644307313394,13.0164,117.64,117.56,10.024]
[1644307313594,11.27056738,117.63,117.56,10.024]
[1644307313794,11.52056738,117.63,117.56,10.024]
[1644307313997,15.16281189,117.63,117.56,10.024]
[1644307314199,18.7594,117.63,117.56,10.274]
[1644307315095,18.7594,117.63,117.56,10.024]
[1644307315595,20.86715549,117.63,117.56,10.024]
[1644307315996,42.82144602,117.63,117.56,10.024]
[1644307316199,43.07144602,117.63,117.56,10.024]
[1644307317698,44.27594049,117.63,117.56,10.024]
[1644307317897,43.07144602,117.63,117.56,10.024]
[1644307318196,44.27594049,117.63,117.56,10.024]
[1644307318696,43.07144602,117.63,117.56,10.024]
[1644307319596,44.27594049,117.63,117.56,10.024]
[1644307325705,43.07144602,117.63,117.56,10.024]
[1644307325905,42.82144602,117.63,117.56,10.024]
[1644307326105,30.02996738,117.63,117.56,10.024]
[1644307326704,30.02996738,117.63,117.56,10.274]
[1644307326705,20.86715549,117.63,117.56,10.274]
[1644307327307,13.0094,117.63,117.56,10.274]
[1644307327809,15.11715549,117.63,117.56,10.274]
[1644307328008,13.0094,117.63,117.56,10.274]
[1644307328408,13.0094,117.63,117.56,10.024]
[1644307328609,12.7622,117.61,117.56,10.024]
[1644307328808,13.0122,117.61,117.56,10.0]
[1644307329410,15.11995549,117.61,117.56,10.0]
[1644307330214,19.0122,117.61,117.56,10.0]
[1644307330613,21.11995549,117.61,117.56,10.0]
[1644307330814,13.0122,117.61,117.56,10.0]
[1644307331815,2.10775549,117.6,117.56,10.0]
[1644307332016,12.7635,117.59,117.56,10.0]
[1644307332216,0.5,117.58,117.56,10.0]
[1644307332818,6.0,117.61,117.57,3.03219997]
[1644307333016,12.7599,117.63,117.57,12.55319997]
[1644307333215,6.0,117.63,117.57,12.80319997]
[1644307333416,6.0,117.63,117.57,12.55319997]
[1644307333617,6.0,117.66,117.57,12.80319997]
[1644307333817,27.05755981,117.67,117.58,0.024]
[1644307334016,2.10775549,117.66,117.58,0.024]
[1644307334217,8.10775549,117.66,117.58,0.024]
[1644307334617,17.75184822,117.65,117.58,0.024]
[1644307334817,30.50974822,117.65,117.58,0.024]
[1644307335017,36.50974822,117.65,117.58,0.024]
[1644307336519,36.75974822,117.65,117.58,0.024]
[1644307336719,18.7579,117.65,117.58,0.024]
[1644307336940,6.0,117.65,117.58,0.024]
[1644307337140,36.50499204,117.67,117.58,0.024]
[1644307337545,38.61274753,117.67,117.58,0.024]
[1644307338354,36.50499204,117.67,117.58,0.024]
[1644307338747,30.50499204,117.67,117.58,0.024]
[1644307339147,36.50499204,117.67,117.58,0.024]
[1644307340452,30.50499204,117.67,117.58,0.024]
[1644307340660,36.50499204,117.67,117.58,0.024]
[1644307340858,30.50499204,117.67,117.58,0.024]
[1644307341051,36.75499204,117.67,117.58,0.024]
[1644307341257,38.86274753,117.67,117.58,0.024]
[1644307341455,60.81703806,117.67,117.58,0.024]
[1644307341655,62.02153253,117.67,117.58,0.024]
[1644307342452,40.067242,117.67,117.58,0.024]
[1644307342653,18.7552,117.67,117.58,0.024]
[1644307344453,19.0052,117.67,117.58,0.024]
[1644307346059,18.7552,117.67,117.58,0.024]
[1644307347158,2.10775549,117.66,117.58,0.024]
[1644307347458,12.7584,117.64,117.58,0.024]
[1644307347756,19.0084,117.64,117.57,23.858]
[1644307347956,21.11615549,117.64,117.57,23.858]
[1644307348658,21.11615549,117.64,117.57,24.108]
[1644307350857,21.11615549,117.64,117.57,23.858]
[1644307352957,21.11615549,117.64,117.57,23.58418428]
[1644307353560,19.0084,117.64,117.57,35.70018428]
[1644307353862,18.7584,117.64,117.57,35.95018428]
[1644307355962,18.7584,117.64,117.57,23.83418428]
[1644307356662,12.7584,117.64,117.57,23.83418428]
[1644307356869,12.7549,117.66,117.57,23.83418428]
[1644307357067,6.0,117.66,117.58,0.024]
[1644307357268,1.20449447,117.69,117.58,0.024]
[1644307357468,18.95193832,117.7,117.58,1.22056443]
[1644307357669,1.20449447,117.71,117.59,1.22056443]
[1644307357873,1.20449447,117.72,117.6,0.024]
[1644307358071,12.7499,117.7,117.62,12.7488]
[1644307358271,12.7499,117.7,117.62,12.9988]
[1644307358471,12.7499,117.7,117.62,18.9988]
[1644307358671,18.7499,117.7,117.62,18.9988]
[1644307359973,18.7499,117.7,117.62,6.0]
[1644307360174,20.85765549,117.7,117.6,18.7747]
[1644307360378,20.85765549,117.7,117.6,12.7747]
[1644307360879,21.10765549,117.7,117.6,18.7747]
[1644307361077,21.10765549,117.7,117.6,6.024]
[1644307361279,21.10765549,117.7,117.6,0.024]
[1644307361584,9.16281189,117.69,117.6,0.024]
[1644307361778,12.7572,117.67,117.6,0.024]
[1644307361977,12.7572,117.67,117.59,47.3852]
[1644307362177,20.86495549,117.67,117.59,47.3852]
[1644307362380,21.11495549,117.67,117.59,47.6352]
[1644307362778,21.11495549,117.67,117.59,47.3852]
[1644307364097,30.27776738,117.67,117.59,47.3852]
[1644307365696,30.27776738,117.67,117.59,22.7066]
[1644307367291,30.02776738,117.67,117.59,22.7066]
[1644307367494,31.23226185,117.67,117.59,22.7066]
[1644307367691,30.02776738,117.67,117.59,22.7066]
[1644307368795,30.27776738,117.67,117.59,22.7066]
[1644307369995,31.48226185,117.67,117.59,22.7066]
[1644307370195,30.27776738,117.67,117.59,22.7066]
[1644307370999,30.27776738,117.67,117.57,0.024]
[1644307371200,44.32810236,117.67,117.57,0.024]
[1644307371497,10.36730636,117.66,117.57,0.024]
[1644307371699,12.7613,117.64,117.57,0.024]
[1644307371897,12.7613,117.64,117.56,10.0]
[1644307372197,21.11905549,117.64,117.56,10.0]
[1644307372396,29.35005549,117.64,117.56,10.0]
[1644307373698,21.11905549,117.64,117.56,10.0]
[1644307375800,57.24899842,117.64,117.56,10.0]
[1644307376000,1.20449447,117.63,117.56,10.0]
[1644307376202,12.7671,117.61,117.56,10.0]
[1644307376602,19.0171,117.61,117.56,10.0]
[1644307377802,21.12485549,117.61,117.56,10.0]
[1644307380005,21.12485549,117.61,117.56,5.1805768]
[1644307380204,42.37266738,117.61,117.56,5.1805768]
[1644307380612,36.12266738,117.61,117.56,5.1805768]
[1644307380805,13.97159447,117.61,117.56,5.1805768]
[1644307381014,12.7671,117.61,117.56,5.1805768]
[1644307381208,1.20449447,117.64,117.57,1.7000962]
[1644307381406,1.20449447,117.66,117.57,9.5230962]
[1644307381605,1.20449447,117.66,117.58,24.0499]
[1644307381814,478.19681264,117.67,117.58,25.9999962]
[1644307382015,476.99231817,117.67,117.58,31.9999962]
[1644307382214,476.99231817,117.67,117.59,1.7000962]
[1644307382406,476.99231817,117.67,117.59,14.4519962]
[1644307382607,476.99231817,117.67,117.59,20.7019962]
[1644307383008,476.99231817,117.67,117.59,19.0019]
[1644307383208,476.99231817,117.67,117.59,13.0019]
[1644307383408,1.20449447,117.69,117.59,13.0019]
[1644307383607,0.25,117.69,117.6,24.0234]
[1644307383808,12.7524,117.69,117.6,24.2734]
[1644307384008,1.20449447,117.7,117.6,47.4182]
[1644307384209,1.20449447,117.71,117.6,53.4182]
[1644307384611,1.20449447,117.72,117.6,53.4182]
[1644307385314,1.20449447,117.72,117.6,55.12351337]
[1644307385509,31.70585036,117.73,117.6,55.12351337]
[1644307385911,31.70585036,117.73,117.6,53.1682]
[1644307386111,1.20449447,117.72,117.6,24.0234]
[1644307386310,1.20449447,117.71,117.6,24.0234]
[1644307386512,1.20449447,117.7,117.6,24.0234]
[1644307386714,6.0,117.7,117.6,24.0234]
[1644307386911,12.7533,117.69,117.6,24.0234]
[1644307387310,13.0033,117.69,117.6,24.2734]
[1644307388916,13.95579447,117.71,117.6,37.0243]
[1644307389116,6.0,117.71,117.61,1.70531337]
[1644307389315,6.0,117.71,117.61,1.95531337]
[1644307389514,18.95645036,117.73,117.61,7.95531337]
[1644307389717,19.20645036,117.73,117.61,7.95531337]
[1644307389914,18.95645036,117.73,117.61,7.95531337]
[1644307390116,14.85725549,117.72,117.6,24.0234]
[1644307390316,1.20449447,117.71,117.6,24.0234]
[1644307390517,1.20449447,117.7,117.6,24.0234]
[1644307390915,1.20449447,117.69,117.6,24.0234]
[1644307391118,6.0,117.69,117.6,24.0234]
[1644307391316,6.25,117.69,117.6,24.0234]
[1644307391516,6.25,117.69,117.6,24.2734]
[1644307391717,12.7544,117.68,117.6,24.2734]
[1644307392118,19.0044,117.68,117.6,24.2734]
[1644307392917,13.0044,117.68,117.6,24.2734]
[1644307393719,12.7544,117.68,117.6,24.2734]
[1644307395118,13.0044,117.68,117.6,24.2734]
[1644307395319,13.95609447,117.7,117.6,24.2734]
[1644307395521,12.7516,117.7,117.61,1.70531337]
[1644307395722,12.7516,117.7,117.61,7.95531337]
[1644307396220,12.7516,117.7,117.61,1.95531337]
[1644307396420,13.95409447,117.72,117.61,14.70511337]
[1644307396720,6.0,117.72,117.61,14.70511337]
[1644307396928,7.20449447,117.72,117.61,14.70511337]
[1644307397524,6.0,117.72,117.61,14.70511337]
[1644307397722,12.7501,117.71,117.61,14.70511337]
[1644307398224,19.0001,117.71,117.61,14.70511337]
[1644307398622,19.0001,117.71,117.61,0.25]
[1644307398823,19.0001,117.71,117.6,24.2734]
[1644307399023,19.0001,117.71,117.6,30.2734]
[1644307399725,21.10785549,117.71,117.6,30.2734]
[1644307399925,19.0001,117.71,117.6,30.2734]
[1644307400727,18.7501,117.71,117.61,1.70531337]
[1644307400926,18.7501,117.71,117.61,1.95531337]
[1644307401131,18.7501,117.71,117.61,7.70531337]
[1644307401325,18.7501,117.71,117.6,24.0234]
[1644307401726,18.7501,117.71,117.6,30.0234]
[1644307402128,19.0001,117.71,117.6,30.0234]
[1644307402330,19.0001,117.71,117.61,1.70531337]
[1644307402730,19.0001,117.71,117.61,1.95531337]
[1644307403026,19.0001,117.71,117.61,0.25]
[1644307403830,19.0001,117.71,117.6,24.2734]
[1644307406235,2.10775549,117.7,117.6,24.2734]
[1644307406436,12.7553,117.67,117.6,24.2734]
[1644307406635,18.7553,117.67,117.6,24.2734]
[1644307406834,19.0053,117.67,117.6,24.2734]
[1644307407034,19.0053,117.67,117.6,24.0234]
[1644307408235,19.0053,117.67,117.6,24.2734]
[1644307409235,19.0053,117.67,117.59,22.9168]
[1644307409436,20.20979447,117.67,117.59,22.9168]
[1644307409637,1.20449447,117.66,117.59,22.9168]
[1644307409941,12.7577,117.64,117.59,22.9168]
[1644307410342,13.0077,117.64,117.57,23.0594]
[1644307410535,19.0077,117.64,117.57,23.0594]
[1644307411139,1.20449447,117.66,117.57,23.0594]
[1644307411339,12.7559,117.66,117.57,33.4364]
[1644307411541,12.7559,117.66,117.57,33.6864]
[1644307411739,1.20449447,117.68,117.57,52.4405]
[1644307411937,6.0,117.68,117.57,52.4405]
[1644307412137,49.72389447,117.69,117.57,52.4405]
[1644307412338,49.72389447,117.69,117.57,53.63706443]
[1644307412537,49.72389447,117.69,117.58,23.7155]
[1644307412737,49.72389447,117.69,117.58,29.9655]
[1644307413139,49.72389447,117.69,117.59,24.2644]
[1644307413339,48.5194,117.69,117.59,24.5144]
[1644307413740,12.7537,117.68,117.59,24.5144]
[1644307413941,12.7537,117.68,117.59,30.5144]
[1644307414141,12.7537,117.68,117.59,24.5144]
[1644307415743,12.7537,117.68,117.59,37.2663]
[1644307416244,13.0037,117.68,117.59,24.5144]
[1644307416445,12.7537,117.68,117.59,24.5144]
[1644307419247,13.0037,117.68,117.59,24.5144]
[1644307421373,14.20819447,117.68,117.59,24.5144]
[1644307421771,2.10775549,117.67,117.59,24.5144]
[1644307422174,12.755,117.66,117.59,24.5144]
[1644307422873,13.005,117.66,117.59,24.2644]
[1644307423076,30.51475549,117.66,117.56,5.1805768]
[1644307423476,12.7598,117.63,117.56,5.1805768]
[1644307423882,13.0098,117.63,117.56,5.1805768]
[1644307424274,2.10775549,117.62,117.56,5.1805768]
[1644307424674,8.35775549,117.62,117.56,5.1805768]
[1644307425876,12.7623,117.61,117.56,5.1805768]
[1644307426077,18.7623,117.61,117.56,5.1805768]
[1644307426275,19.0123,117.61,117.56,5.1805768]
[1644307426476,30.75205549,117.61,117.56,5.1805768]
[1644307426776,31.95654996,117.61,117.56,5.1805768]
[1644307426976,30.75205549,117.61,117.56,5.1805768]
[1644307427378,21.12005549,117.61,117.56,5.1805768]
[1644307428581,20.87005549,117.61,117.56,5.1805768]
[1644307428778,18.7623,117.61,117.56,5.1805768]
[1644307430180,20.87005549,117.61,117.56,5.1805768]
[1644307431783,21.12005549,117.61,117.56,5.1805768]
[1644307433787,19.0123,117.61,117.56,5.1805768]
[1644307434088,18.7623,117.61,117.56,5.1805768]
[1644307435994,35.0,117.6,117.56,1.35102135]
[1644307436190,6.0,117.6,117.56,1.35102135]
[1644307436391,14.87595549,117.59,117.56,1.35102135]
[1644307436693,18.7682,117.59,117.56,1.35102135]
[1644307436890,19.0182,117.59,117.56,1.35102135]
[1644307438596,21.12595549,117.59,117.56,1.35102135]
[1644307438793,19.0182,117.59,117.56,1.35102135]
[1644307441499,18.7682,117.59,117.56,1.35102135]
[1644307443899,12.7682,117.59,117.56,1.35102135]
[1644307444700,12.7682,117.59,117.57,3.03219997]
[1644307445000,12.7608,117.61,117.56,1.35102135]
[1644307448926,18.7608,117.61,117.56,1.35102135]
[1644307449126,12.7608,117.61,117.56,1.35102135]
[1644307450629,20.86855549,117.61,117.56,1.35102135]
[1644307451029,21.11855549,117.61,117.56,1.35102135]
[1644307451830,22.32304996,117.61,117.56,1.35102135]
[1644307452230,22.32304996,117.61,117.53,0.024]
[1644307452428,1.20449447,117.6,117.53,0.024]
[1644307452630,7.20449447,117.6,117.52,47.6312]
[1644307452829,12.7657,117.58,117.52,47.6312]
[1644307453231,19.0157,117.58,117.52,47.6312]
[1644307453728,12.7657,117.58,117.52,47.6312]